fUSD/lending_fUSD_20241116
["ID","MTS","AMOUNT","RATE_DAILY","PERIOD"]
[342394515,1731786455690,-150.0,9.897e-05,2]
[342394516,1731786455715,-5000.0,9.9e-05,2]
[342394517,1731786455739,-1587.0,9.9e-05,3]
[342394518,1731786455760,-4297.27058166,9.9e-05,2]
[342394519,1731786457769,500.0,0.00025,60]
[342394520,1731786458105,601.26,0.00025,60]
[342394521,1731786461541,500.0,0.00025,60]
[342394522,1731786467151,500.0,0.00025,60]
[342394523,1731786467431,500.0,0.00025,60]
[342394524,1731786481526,500.0,0.00025,60]
[342394525,1731786481814,500.0,0.00025,60]
[342394526,1731786483911,500.0,0.00025,60]
[342394527,1731786484211,500.0,0.00025,60]
[342394528,1731786486602,500.0,0.00025,60]
[342394529,1731786486873,500.0,0.00025,60]
[342394530,1731786492536,500.0,0.00025,60]
[342394531,1731786492809,289.18,0.00025,60]
[342394532,1731786495543,500.0,0.00025,60]
[342394533,1731786495810,500.0,0.00025,60]
[342394534,1731786496943,500.0,0.00025,60]
[342394535,1731786497226,500.0,0.00025,60]
[342394536,1731786497480,183.12,0.00025,60]
[342394537,1731786499782,500.0,0.00025,60]
[342394550,1731786501626,500.0,0.00025,60]
[342394551,1731786501866,500.0,0.00025,60]
[342394552,1731786501976,500.0,0.00025,60]
[342394553,1731786502159,416.24,0.00025,60]
[342394554,1731786506431,500.0,0.00025,60]
[342394555,1731786506642,500.0,0.00025,60]
[342394556,1731786507156,500.0,0.00025,60]
[342394557,1731786507417,500.0,0.00025,60]
[342394558,1731786509172,500.0,0.00025,60]
[342394559,1731786509476,500.0,0.00025,60]
[342394560,1731786513593,500.0,0.00025,60]
[342394561,1731786517671,500.0,0.00025,60]
[342394562,1731786518285,516.48,0.00025,60]
[342394563,1731786523651,223.66,0.00025,60]
[342394571,1731786525203,500.0,0.00025,60]
[342394572,1731786537230,500.0,0.00025,60]
[342394573,1731786547103,-165.48,8.878e-05,2]
[342394578,1731786549989,500.0,0.00025,60]
[342394581,1731786550268,500.0,0.00025,60]
[342394582,1731786552414,500.0,0.00025,60]
[342394583,1731786552557,500.0,0.00025,60]
[342394584,1731786552868,500.0,0.00025,60]
[342394585,1731786552911,500.0,0.00025,60]
[342394586,1731786553020,500.0,0.00025,60]
[342394587,1731786553606,500.0,0.00025,60]
[342394588,1731786553679,500.0,0.00025,60]
[342394589,1731786554136,649.9,0.00025,60]
[342394590,1731786554800,500.0,0.00025,60]
[342394591,1731786555078,500.0,0.00025,60]
[342394592,1731786558154,327.66,8.88e-05,2]
[342394593,1731786561031,500.0,0.00025,60]
[342394594,1731786561133,500.0,0.00025,60]
[342394595,1731786563530,500.0,0.00025,60]
[342394596,1731786563952,500.0,0.00025,60]
[342394597,1731786564088,500.0,0.00025,60]
[342394598,1731786564366,289.36,0.00025,60]
[342394599,1731786571310,602.51,0.00025,60]
[342394600,1731786571572,500.0,0.00025,60]
[342394601,1731786571918,500.0,0.00025,60]
[342394607,1731786576906,500.0,0.00025,60]
[342394608,1731786577182,500.0,0.00025,60]
[342394616,1731786616598,1000.0,8.878e-05,2]
[342394632,1731786631737,-150.0,9.735e-05,2]
[342394634,1731786631747,-150.0,9.736e-05,2]
[342394636,1731786631759,-150.0,9.738e-05,2]
[342394638,1731786631769,-150.0,9.738e-05,2]
[342394640,1731786631778,-150.0,9.741e-05,2]
[342394642,1731786631788,-150.0,9.743e-05,2]
[342394644,1731786631797,-150.0,9.744e-05,2]
[342394646,1731786631806,-150.0,9.745e-05,2]
[342394648,1731786631815,-150.0,9.746e-05,2]
[342394651,1731786631838,-150.0,9.753e-05,2]
[342394653,1731786631847,-150.0,9.755e-05,2]
[342394655,1731786631856,-150.0,9.757e-05,2]
[342394657,1731786631865,-150.0,9.757e-05,2]
[342394659,1731786631875,-150.0,9.765e-05,2]
[342394661,1731786631884,-150.0,9.767e-05,2]
[342394663,1731786631895,-150.0,9.771e-05,2]
[342394665,1731786631904,-150.0,9.78e-05,2]
[342394667,1731786631914,-150.0,9.78e-05,2]
[342394669,1731786631924,-150.0,9.784e-05,2]
[342394671,1731786631934,-150.0,9.787e-05,2]
[342394673,1731786631943,-150.0,9.791e-05,2]
[342394675,1731786631953,-150.0,9.795e-05,2]
[342394677,1731786631963,-150.0,9.797e-05,2]
[342394679,1731786631973,-300.0,9.799e-05,2]
[342394681,1731786631982,-742.7795339,9.8e-05,2]
[342394683,1731786631994,-257.2204661,9.8e-05,2]
[342394685,1731786632004,-3901.9772,9.8e-05,2]
[342394686,1731786632014,-1000.0,9.8e-05,2]
[342394687,1731786632023,-2500.0,9.8e-05,2]
[342394688,1731786632032,-150.0,9.803e-05,2]
[342394689,1731786632041,-150.0,9.807e-05,2]
[342394690,1731786632062,-150.0,9.808e-05,2]
[342394691,1731786632073,-150.0,9.809e-05,2]
[342394692,1731786632083,-150.0,9.815e-05,2]
[342394693,1731786632093,-150.0,9.82e-05,2]
[342394694,1731786632103,-150.0,9.822e-05,2]
[342394695,1731786632112,-150.0,9.822e-05,2]
[342394696,1731786632123,-5000.0,9.823e-05,2]
[342394697,1731786632133,-150.0,9.826e-05,2]
[342394698,1731786632143,-150.0,9.827e-05,2]
[342394700,1731786632152,-150.0,9.828e-05,2]
[342394702,1731786632161,-150.0,9.832e-05,2]
[342394703,1731786632171,-150.0,9.837e-05,2]
[342394705,1731786632182,-150.0,9.846e-05,2]
[342394707,1731786632192,-150.0,9.847e-05,2]
[342394709,1731786632202,-150.0,9.869e-05,2]
[342394711,1731786632211,-150.0,9.875e-05,2]
[342394713,1731786632221,-150.0,9.89e-05,2]
[342394715,1731786632230,-150.0,9.897e-05,2]
[342394717,1731786632239,-150.0,9.898e-05,2]
[342394718,1731786632249,-150.0,9.899e-05,2]
[342394719,1731786632259,-150.0,9.899e-05,2]
[342394720,1731786632268,-8882.672818,9.9e-05,2]
[342394721,1731786632278,-158316.09654962,9.9e-05,2]
[342394722,1731786632287,-15440.544,9.9e-05,2]
[342394723,1731786632298,-1112.89356595,9.9e-05,2]
[342394724,1731786632308,-150.0,9.904e-05,2]
[342394725,1731786632321,-150.0,9.907e-05,2]
[342394726,1731786632331,-150.0,9.907e-05,2]
[342394727,1731786632340,-422.25,9.908e-05,2]
[342394728,1731786632350,-7774.09873675,9.91e-05,2]
[342394729,1731786632360,-150.0,9.911e-05,2]
[342394730,1731786632370,-150.0,9.911e-05,2]
[342394731,1731786632379,-150.0,9.917e-05,2]
[342394732,1731786632388,-150.0,9.922e-05,2]
[342394733,1731786632398,-150.0,9.923e-05,2]
[342394734,1731786632407,-150.0,9.928e-05,2]
[342394735,1731786632418,-150.0,9.93e-05,2]
[342394736,1731786632428,-150.0,9.931e-05,2]
[342394737,1731786632438,-150.0,9.933e-05,2]
[342394738,1731786632448,-150.0,9.935e-05,2]
[342394739,1731786632458,-150.0,9.94e-05,2]
[342394740,1731786632468,-150.0,9.94e-05,2]
[342394741,1731786632478,-150.0,9.941e-05,2]
[342394742,1731786632488,-150.0,9.942e-05,2]
[342394743,1731786632497,-150.0,9.943e-05,2]
[342394744,1731786632508,-150.0,9.943e-05,2]
[342394745,1731786632518,-150.0,9.945e-05,2]
[342394746,1731786632527,-150.0,9.946e-05,2]
[342394747,1731786632537,-150.0,9.946e-05,2]
[342394748,1731786632547,-200.0,9.952e-05,2]
[342394749,1731786632556,-150.0,9.952e-05,2]
[342394750,1731786632566,-150.0,9.953e-05,2]
[342394751,1731786632578,-128874.9192351,9.953e-05,2]
[342394752,1731786632592,-2994.52882669,9.953e-05,2]
[342394753,1731786632601,-200.0,9.953e-05,2]
[342394754,1731786632612,-2657.67226529,9.957e-05,2]
[342394755,1731786632621,-150.0,9.957e-05,2]
[342394756,1731786632632,-200.0,9.958e-05,2]
[342394757,1731786632642,-200.0,9.96e-05,2]
[342394758,1731786632651,-2409.063,9.961e-05,2]
[342394759,1731786632662,-175.849,9.961e-05,2]
[342394760,1731786632673,-150.0,9.961e-05,2]
[342394761,1731786632684,-200.0,9.967e-05,2]
[342394762,1731786632694,-150.0,9.967e-05,2]
[342394763,1731786632704,-64869.33943102,9.969e-05,2]
[342394764,1731786632716,-578.1603228,9.969e-05,2]
[342394765,1731786632748,-66421.94830797,9.969e-05,2]
[342394766,1731786632758,-200.0,9.97e-05,2]
[342394767,1731786633051,-14135.37851809,9.97e-05,2]
[342394768,1731786633081,-24023.19037957,9.97e-05,2]
[342394769,1731786633094,-573.3378,9.97e-05,2]
[342394770,1731786633106,-2012.00621611,9.97e-05,2]
[342394771,1731786634245,500.0,0.00025,60]
[342394776,1731786637634,-35279.95030736,9.97e-05,2]
[342394777,1731786637740,-55845.58484066,9.97e-05,2]
[342394778,1731786637750,-150.0,9.972e-05,2]
[342394779,1731786637762,-513.0,9.973e-05,2]
[342394780,1731786637772,-201.13367907,9.973e-05,2]
[342394781,1731786637781,-500.0,9.973e-05,2]
[342394782,1731786637791,-500.0,9.973e-05,2]
[342394783,1731786637800,-500.0,9.973e-05,2]
[342394784,1731786637811,-200.0,9.973e-05,2]
[342394785,1731786637820,-150.0,9.974e-05,2]
[342394786,1731786637831,-200.0,9.976e-05,2]
[342394787,1731786637840,-200.0,9.977e-05,2]
[342394788,1731786637850,-150.0,9.977e-05,2]
[342394789,1731786637859,-200.0,9.977e-05,2]
[342394790,1731786637869,-150.0,9.978e-05,2]
[342394791,1731786637878,-200.0,9.979e-05,2]
[342394792,1731786637888,-131869.44806179,9.98e-05,2]
[342394793,1731786637898,-2657.67226529,9.98e-05,2]
[342394794,1731786637907,-200.0,9.983e-05,2]
[342394795,1731786637917,-2657.67226529,9.984e-05,2]
[342394796,1731786637927,-200.0,9.984e-05,2]
[342394797,1731786637937,-200.0,9.985e-05,2]
[342394798,1731786637946,-150.0,9.986e-05,2]
[342394799,1731786637956,-150.0,9.986e-05,2]
[342394800,1731786637965,-393.22487878,9.987e-05,2]
[342394801,1731786637974,-217.7487208,9.987e-05,2]
[342394802,1731786637983,-4369.702588,9.987e-05,2]
[342394803,1731786637993,-1405.1996594,9.987e-05,2]
[342394804,1731786638003,-4459.0082821,9.987e-05,2]
[342394805,1731786638012,-728.8079913,9.987e-05,2]
[342394806,1731786638021,-150.0,9.988e-05,2]
[342394807,1731786638032,-1000.0,9.988e-05,2]
[342394808,1731786638041,-150.0,9.991e-05,2]
[342394809,1731786638051,-200.0,9.991e-05,2]
[342394810,1731786638062,-200.0,9.992e-05,2]
[342394811,1731786638072,-217.7487208,9.993e-05,2]
[342394812,1731786638083,-217.7487208,9.993e-05,2]
[342394813,1731786638092,-217.7487208,9.993e-05,2]
[342394814,1731786638102,-3685.2682766,9.993e-05,2]
[342394815,1731786638111,-3000.8339652,9.993e-05,2]
[342394816,1731786638120,-2316.3996537,9.993e-05,2]
[342394817,1731786638130,-1185.10073,9.993e-05,2]
[342394818,1731786638140,-965.0018007,9.993e-05,2]
[342394819,1731786638149,-744.9028713,9.993e-05,2]
[342394820,1731786638158,-3760.5858605,9.993e-05,2]
[342394821,1731786638168,-3062.1634389,9.993e-05,2]
[342394822,1731786638177,-2363.7410173,9.993e-05,2]
[342394823,1731786638186,-614.6534955,9.993e-05,2]
[342394824,1731786638196,-500.4989997,9.993e-05,2]
[342394825,1731786638206,-386.3445039,9.993e-05,2]
[342394826,1731786638217,-200.0,9.994e-05,2]
[342394827,1731786638226,-2657.67226529,9.994e-05,2]
[342394828,1731786638236,-150.0,9.996e-05,2]
[342394829,1731786638246,-200.0,9.997e-05,2]
[342394830,1731786638255,-131869.44806179,9.997e-05,2]
[342394831,1731786638265,-150.0,9.998e-05,2]
[342394832,1731786638274,-150.0,9.998e-05,2]
[342394833,1731786638283,-1156.75127149,9.999e-05,2]
[342394834,1731786638293,-8500.0,9.999e-05,2]
[342394835,1731786638302,-90839.01364989,9.999e-05,2]
[342394836,1731786638311,-8500.0,9.999e-05,2]
[342394837,1731786638321,-443.71229162,9.999e-05,2]
[342394838,1731786638333,-2657.67226529,0.0001,2]
[342394840,1731786638343,-4465.06518757,0.0001,2]
[342394841,1731786638352,-218374.60962483,0.0001,2]
[342394842,1731786638362,-563.0,0.0001,2]
[342394843,1731786638371,-1255.0,0.0001,2]
[342394844,1731786638380,-150.0,0.0001,2]
[342394845,1731786638389,-628.0,0.0001,2]
[342394846,1731786638399,-1993.0,0.0001,2]
[342394847,1731786638408,-1925.0,0.0001,2]
[342394848,1731786638417,-560.0,0.0001,2]
[342394849,1731786638426,-1260.0,0.0001,2]
[342394850,1731786638436,-814.0,0.0001,2]
[342394851,1731786638445,-3746.0,0.0001,2]
[342394853,1731786638455,-920.0,0.0001,2]
[342394855,1731786638464,-3490.0,0.0001,2]
[342394857,1731786638473,-44963.55673735,0.0001,2]
[342394858,1731786638483,-44963.55673731,0.0001,2]
[342394859,1731786638492,-44963.55673731,0.0001,2]
[342394860,1731786638501,-44963.55673731,0.0001,2]
[342394861,1731786638511,-44963.55673731,0.0001,2]
[342394862,1731786638520,-44963.55673731,0.0001,2]
[342394863,1731786638530,-44963.55673731,0.0001,2]
[342394864,1731786638539,-44963.55673731,0.0001,2]
[342394865,1731786638549,-44963.55673731,0.0001,2]
[342394866,1731786638558,-13644.0,0.0001,2]
[342394867,1731786638571,-166.0,0.0001,2]
[342394868,1731786638584,-5935.0,0.0001,2]
[342394869,1731786638593,-200.0,0.0001,2]
[342394870,1731786638602,-150.0,0.0001,2]
[342394871,1731786638612,-1160.0,0.0001,2]
[342394872,1731786638621,-250.0,0.0001,2]
[342394873,1731786638631,-1092.0,0.0001,2]
[342394874,1731786638640,-75384.43069638,0.0001,2]
[342394875,1731786638654,-9000.0,0.0001,2]
[342394876,1731786638666,-320.7041844,0.0001,2]
[342394877,1731786638697,-1775.26791665,0.0001,2]
[342394878,1731786638709,-500.823414,0.0001,2]
[342394879,1731786638721,-3775.32905179,0.0001,2]
[342394880,1731786638733,-1770.51619112,0.0001,2]
[342394881,1731786638746,-4498.94574469,0.0001,2]
[342394882,1731786638757,-10194.52850128,0.0001,2]
[342394883,1731786638768,-1958.76014747,0.0001,2]
[342394884,1731786638779,-1202.43518855,0.0001,2]
[342394885,1731786638830,500.4533037,0.00025,60]
[342394886,1731786638844,-3637.03416994,0.0001,2]
[342394887,1731786638868,-3012434.29852612,0.0001,2]
[342394888,1731786639415,-98223.19060134,0.0001,2]
[342394889,1731786639426,-1795.65,0.0001,2]
[342394890,1731786639438,-1944.3226866,0.0001,2]
[342394891,1731786639450,-1143.300498,0.0001,2]
[342394892,1731786639461,-1397.417652,0.0001,2]
[342394893,1731786639746,-1325.11037221,0.0001,2]
[342394894,1731786639760,-299.46507866,0.0001,2]
[342394895,1731786639772,-1268.05999999,0.0001,2]
[342394896,1731786639784,-277.68864998,0.0001,2]
[342394898,1731786640883,500.0,0.00025,60]
[342394899,1731786641225,179.55,0.00025,60]
[342394900,1731786641642,500.08480686,0.00025,60]
[342394904,1731786642710,-831.15986556,0.0001,2]
[342394905,1731786642723,-830.00175765,0.0001,2]
[342394906,1731786642737,-733.3,0.0001,2]
[342394907,1731786642755,-469.84,0.0001,2]
[342394908,1731786642769,-1318.95628918,0.0001,2]
[342394909,1731786642805,-9993.45663985,0.0001,2]
[342394910,1731786642817,-4014.18528491,0.0001,2]
[342394921,1731786645315,500.0,0.00025,60]
[342394922,1731786645802,-373.90809045,9.8e-05,2]
[342394923,1731786645814,-150.0,0.0001,2]
[342394924,1731786645825,-15285.2167164,0.0001,2]
[342394925,1731786645840,-2387.75548,0.0001,2]
[342394926,1731786645853,-1001281.99754125,0.0001,2]
[342394927,1731786645865,-7181.68002,0.0001,2]
[342394928,1731786645912,-92058.0961496,0.0001,2]
[342394929,1731786645926,-395.02,0.0001,2]
[342394931,1731786647246,220.07998379,0.00025,60]
[342394932,1731786647574,500.0,0.00025,60]
[342394933,1731786647802,525.68,0.00025,60]
[342394934,1731786654240,500.0,0.00025,60]
[342394935,1731786661932,500.0,0.00025,60]
[342394936,1731786678909,196.61046614,0.00025,60]
[342394937,1731786682495,500.0,0.00025,60]
[342394938,1731786682742,500.0,0.00025,60]
[342394939,1731786694983,500.0,0.00025,60]
[342394940,1731786697224,500.0,0.00025,60]
[342394941,1731786701467,322.98999996,0.00025,60]
[342394942,1731786742228,500.0,0.00025,60]
[342394943,1731786745447,500.0,0.00025,60]
[342394944,1731786745706,500.0,0.00025,60]
[342394945,1731786746011,500.0,0.00025,60]
[342394946,1731786746312,500.0,0.00025,60]
[342394947,1731786746599,500.0,0.00025,60]
[342394948,1731786750212,500.0,0.00025,60]
[342394949,1731786750964,500.0,0.00025,60]
[342394950,1731786753247,500.0,0.00025,60]
[342394951,1731786753514,480.53004203,0.00025,60]
[342394952,1731786757227,500.0,0.00025,60]
[342394953,1731786770437,500.0,0.00025,60]
[342394954,1731786773460,500.0,0.00025,60]
[342394955,1731786787647,500.0,0.00025,60]
[342394956,1731786801419,4007.05,0.00025,60]
[342394957,1731786801710,4007.05,0.00025,60]
[342394958,1731786802001,4007.05,0.00025,60]
[342394959,1731786802255,4007.05,0.00025,60]
[342394960,1731786802857,4007.05,0.00025,60]
[342394961,1731786803131,4007.05,0.00025,60]
[342394962,1731786803412,4007.05,0.00025,60]
[342394963,1731786803696,4007.05,0.00025,60]
[342394964,1731786803968,4007.05,0.00025,60]
[342394965,1731786804077,500.0,0.00025,60]
[342394966,1731786804245,4007.05,0.00025,60]
[342394967,1731786804329,500.0,0.00025,60]
[342394968,1731786804506,4007.05,0.00025,60]
[342394969,1731786804593,500.0,0.00025,60]
[342394970,1731786804773,4007.05,0.00025,60]
[342394971,1731786804886,500.0,0.00025,60]
[342394972,1731786805040,4007.05,0.00025,60]
[342394973,1731786805175,500.0,0.00025,60]
[342394974,1731786805352,4007.05,0.00025,60]
[342394975,1731786805460,500.0,0.00025,60]
[342394976,1731786805615,4007.05,0.00025,60]
[342394977,1731786805728,500.0,0.00025,60]
[342394978,1731786805901,4007.05,0.00025,60]
[342394979,1731786806008,500.0,0.00025,60]
[342394980,1731786806172,4007.05,0.00025,60]
[342394981,1731786806283,500.0,0.00025,60]
[342394982,1731786806463,4007.05,0.00025,60]
[342394983,1731786806557,500.0,0.00025,60]
[342394984,1731786806727,4007.05,0.00025,60]
[342394985,1731786806906,500.0,0.00025,60]
[342394986,1731786806986,4007.05,0.00025,60]
[342394987,1731786807178,500.0,0.00025,60]
[342394988,1731786807250,4007.05,0.00025,60]
[342394989,1731786807483,500.0,0.00025,60]
[342394990,1731786807533,4007.05,0.00025,60]
[342394991,1731786807771,500.0,0.00025,60]
[342394992,1731786807825,4007.05,0.00025,60]
[342394993,1731786808004,599.57,0.00025,60]
[342394994,1731786808120,4007.11250001,0.00025,60]
[342394995,1731786808393,500.0,0.00025,60]
[342394996,1731786808680,500.0,0.00025,60]
[342394997,1731786808984,273.35514873,0.00025,60]
[342394998,1731786810179,500.0,0.00025,60]
[342394999,1731786831001,500.0,0.00025,60]
[342395000,1731786842946,500.0,0.00025,60]
[342395001,1731786845100,500.0,0.00025,60]
[342395002,1731786849205,500.0,0.00025,60]
[342395003,1731786849476,509.68,0.00025,60]
[342395004,1731786853628,500.0,0.00025,60]
[342395005,1731786879249,500.0,0.00025,60]
[342395006,1731786879514,169.14776851,0.00025,60]
[342395007,1731786902788,569.24,0.00025,60]
[342395008,1731786909800,501.36,0.00025,60]
[342395009,1731786911824,934.85,8.219e-05,2]
[342395010,1731786996355,500.0,0.00025,60]
[342395011,1731787046834,500.0,0.00025,60]
[342395012,1731787129979,215.69,8.219e-05,2]
[342395013,1731787167545,500.0,0.00025,60]
[342395014,1731787167806,500.0,0.00025,60]
[342395015,1731787184460,500.0,0.00025,60]
[342395016,1731787184721,567.48,0.00025,60]
[342395017,1731787220482,415.59789694,0.00025,60]
[342395018,1731787254024,624.09,0.00025,60]
[342395019,1731787412986,500.0,0.00024999,120]
[342395020,1731787450839,335.97485454,0.00025,60]
[342395026,1731787535091,-250.0,8.833e-05,2]
[342395027,1731787535114,-203.49,8.837e-05,2]
[342395028,1731787535135,-997.59574499,8.84e-05,2]
[342395029,1731787535156,-1033.34944651,8.84e-05,2]
[342395030,1731787591649,888.1,8.219e-05,2]
[342395031,1731787596988,2200.0,8.22e-05,2]
[342395032,1731787597023,1800.0,8.22e-05,2]
[342395033,1731787597384,2100.0,8.22e-05,2]
[342395034,1731787597451,600.0,8.22e-05,2]
[342395035,1731787639116,-1000.0,8.836e-05,2]
[342395036,1731787639137,-251.94055349,8.84e-05,2]
[342395037,1731787639157,-163.83,8.851e-05,2]
[342395038,1731787639179,-166.16,8.855e-05,2]
[342395039,1731787639201,-2100.56,8.857e-05,2]
[342395040,1731787639224,-250.0,8.865e-05,2]
[342395041,1731787639246,-250.0,8.865e-05,2]
[342395042,1731787639268,-203.49,8.881e-05,2]
[342395043,1731787639288,-300.0,8.999e-05,2]
[342395044,1731787639309,-22182.55910876,9e-05,2]
[342395045,1731787639330,-300.0,9e-05,3]
[342395046,1731787639351,-1054.0,9.052e-05,2]
[342395047,1731787639373,-700.0,9.1e-05,3]
[342395048,1731787639394,-1100.0,9.2e-05,3]
[342395049,1731787639418,-1400.0,9.3e-05,3]
[342395050,1731787639441,-168.9,9.327e-05,2]
[342395051,1731787639462,-1800.0,9.4e-05,3]
[342395052,1731787639485,-300.0,9.5e-05,3]
[342395053,1731787639508,-447.27,9.52e-05,2]
[342395054,1731787639529,-61.49974555,9.528e-05,2]
[342395055,1731787647098,-992.50025445,9.528e-05,2]
[342395056,1731787647118,-2200.0,9.59e-05,2]
[342395057,1731787647139,-1800.0,9.59e-05,2]
[342395058,1731787647160,-1789.52435921,9.59e-05,2]
[342395059,1731787650100,-310.47564079,9.59e-05,2]
[342395060,1731787650120,-600.0,9.59e-05,2]
[342395061,1731787650140,-200.0,9.6e-05,2]
[342395062,1731787650162,-244.63634323,9.6e-05,3]
[342395068,1731787741612,500.0,8.22e-05,2]
[342395069,1731787742371,1600.0,8.22e-05,2]
[342395070,1731787744083,1800.0,8.22e-05,2]
[342395071,1731787747115,-664.88,8.917e-05,2]
[342395072,1731787747136,-1800.0,8.972e-05,2]
[342395085,1731787831779,-500.0,9.59e-05,2]
[342395086,1731787831790,-1600.0,9.59e-05,2]
[342395087,1731787831800,-1800.0,9.59e-05,2]
[342395088,1731787831811,-55.36365677,9.6e-05,3]
[342395089,1731787831821,-1364.03733797,9.659e-05,2]
[342395090,1731787831837,-135.96266203,9.659e-05,2]
[342395091,1731787831848,-300.0,9.7e-05,3]
[342395092,1731787831859,-1500.0,9.707e-05,2]
[342395093,1731787831869,-1500.0,9.738e-05,2]
[342395094,1731787831880,-1618.59531389,9.765e-05,2]
[342395095,1731787831890,-1663.3316,9.8e-05,2]
[342395096,1731787831902,-4136.239,9.8e-05,2]
[342395097,1731787831913,-1000.0,9.8e-05,2]
[342395098,1731787831923,-300.0,9.8e-05,3]
[342395099,1731787831933,-150.0,9.805e-05,2]
[342395100,1731787831943,-1500.0,9.81e-05,2]
[342395101,1731787831954,-150.0,9.816e-05,2]
[342395102,1731787831964,-150.0,9.831e-05,2]
[342395103,1731787831975,-1500.0,9.833e-05,2]
[342395104,1731787831986,-790.77513023,9.854e-05,2]
[342395105,1731787831996,-150.0,9.86e-05,2]
[342395106,1731787832006,-1500.0,9.867e-05,2]
[342395107,1731787832016,-269.66633053,9.873e-05,2]
[342395108,1731787832027,-1381.40468611,9.88e-05,2]
[342395109,1731787832037,-1500.0,9.882e-05,2]
[342395110,1731787832049,-1208.1147,9.893e-05,2]
[342395111,1731787832062,-150.0,9.899e-05,2]
[342395112,1731787832072,-10701.1907,9.9e-05,2]
[342395113,1731787832085,-2217.5112,9.9e-05,2]
[342395114,1731787832097,-5627.1859,9.9e-05,2]
[342395115,1731787832112,-2086.06709674,9.9e-05,2]
[342395116,1731787832124,-2086.06709673,9.9e-05,2]
[342395117,1731787832135,-924.0,9.9e-05,3]
[342395118,1731787832146,-57631.06365579,9.91e-05,2]
[342395119,1731787832158,-150.0,9.913e-05,2]
[342395120,1731787832168,-150.0,9.921e-05,2]
[342395121,1731787832178,-150.0,9.94e-05,2]
[342395122,1731787832189,-1000.0,9.94e-05,2]
[342395123,1731787832199,-1500.0,9.941e-05,2]
[342395124,1731787832212,-150.0,9.947e-05,2]
[342395125,1731787832222,-150.0,9.956e-05,2]
[342395126,1731787832233,-150.0,9.957e-05,2]
[342395127,1731787832244,-150.0,9.96e-05,2]
[342395128,1731787832254,-13644.0,9.96e-05,2]
[342395129,1731787832264,-5935.0,9.96e-05,2]
[342395130,1731787832274,-1160.0,9.96e-05,2]
[342395131,1731787832285,-3269.088,9.962e-05,2]
[342395132,1731787832296,-175.751,9.962e-05,2]
[342395133,1731787832306,-15058.84668054,9.97e-05,2]
[342395134,1731787832325,-626.65,9.97e-05,2]
[342395135,1731787834643,-19091.76101845,9.97e-05,2]
[342395170,1731787837696,-418.7472,9.97e-05,2]
[342395171,1731787837911,-1505.39510101,9.97e-05,2]
[342395172,1731787837922,-432.19599862,9.973e-05,2]
[342395173,1731787837932,-500.0,9.973e-05,2]
[342395174,1731787837943,-500.0,9.973e-05,2]
[342395175,1731787837955,-150.0,9.981e-05,2]
[342395176,1731787837965,-1260.4215526,9.992e-05,2]
[342395177,1731787837975,-3127.5021283,9.992e-05,2]
[342395178,1731787837985,-570.31333178,9.993e-05,2]
[342395179,1731787837997,-676.08992162,9.993e-05,2]
[342395180,1731787838007,-1232.3849542,9.993e-05,2]
[342395181,1731787838016,-121.26989635,9.993e-05,2]